fUSD/lending_fUSD_20251210
["ID","MTS","AMOUNT","RATE_DAILY","PERIOD"]
[398121763,1765385457499,-151.0,0.00041361,120]
[398121764,1765385457507,-465.912624,0.00041361,120]
[398121765,1765385457516,-169.90399,0.00041361,120]
[398121766,1765385457527,-151.0,0.00041361,120]
[398121767,1765385457541,-1282.301139,0.00041361,120]
[398121768,1765385457550,-465.912624,0.00041361,120]
[398121769,1765385457559,-151.0,0.00041361,90]
[398121770,1765385457569,-169.90399,0.00041361,120]
[398121771,1765385457578,-151.0,0.00041361,120]
[398121772,1765385457588,-465.912624,0.00041361,120]
[398121773,1765385457598,-151.0,0.00041361,90]
[398121774,1765385457608,-169.90399,0.00041361,120]
[398121775,1765385457618,-1282.301139,0.00041361,120]
[398121776,1765385457628,-465.912624,0.00041361,120]
[398121777,1765385457637,-1282.301139,0.00041361,120]
[398121778,1765385457647,-155.397602,0.00041361,120]
[398121779,1765385457657,-1282.301139,0.00041361,120]
[398121780,1765385457668,-151.0,0.00041361,120]
[398121781,1765385457678,-155.397602,0.00041361,120]
[398121782,1765385457687,-151.0,0.00041361,120]
[398121783,1765385457696,-155.397602,0.00041361,120]
[398121784,1765385457706,-208.0,0.00041361,120]
[398121785,1765385457715,-155.397602,0.00041361,120]
[398121786,1765385457725,-471.246844,0.00041361,120]
[398121787,1765385457734,-471.246844,0.00041361,120]
[398121788,1765385457742,-471.246844,0.00041361,120]
[398121789,1765385457751,-471.246844,0.00041361,120]
[398121790,1765385457760,-151.0,0.00041361,120]
[398121791,1765385457770,-428.830349,0.00041361,120]
[398121792,1765385457780,-428.830349,0.00041361,120]
[398121793,1765385457790,-428.830349,0.00041361,120]
[398121794,1765385457799,-428.830349,0.00041361,120]
[398121795,1765385457808,-3636.765509,0.00041361,120]
[398121796,1765385457817,-271.225305,0.00041361,120]
[398121797,1765385457826,-3636.765509,0.00041361,120]
[398121798,1765385457835,-3636.765509,0.00041361,120]
[398121799,1765385457845,-151.0,0.00041361,120]
[398121800,1765385457854,-4258.069421,0.00041361,120]
[398121801,1765385457863,-3636.765509,0.00041361,120]
[398121802,1765385457872,-4258.069421,0.00041361,120]
[398121803,1765385457881,-4258.069421,0.00041361,120]
[398121804,1765385457890,-4258.069421,0.00041361,120]
[398121805,1765385457900,-151.0,0.00041361,120]
[398121806,1765385457910,-8749.692225,0.00041361,120]
[398121807,1765385457923,-518.81217,0.00041361,120]
[398121808,1765385457933,-8749.692225,0.00041361,120]
[398121809,1765385457943,-518.81217,0.00041361,120]
[398121810,1765385457953,-8749.692225,0.00041361,120]
[398121811,1765385457962,-518.81217,0.00041361,120]
[398121812,1765385457971,-1056.51,0.00041363,30]
[398121813,1765385457981,-1056.51,0.00041363,30]
[398121814,1765385457989,-678.26,0.00041363,30]
[398121815,1765385457999,-678.26,0.00041363,30]
[398121816,1765385458008,-500.0,0.00041363,30]
[398121817,1765385458017,-500.0,0.00041363,30]
[398121818,1765385458026,-500.0,0.00041363,30]
[398121819,1765385458036,-500.0,0.00041363,30]
[398121820,1765385458045,-500.0,0.00041363,30]
[398121821,1765385458054,-500.0,0.00041363,30]
[398121822,1765385458063,-500.0,0.00041363,30]
[398121823,1765385458072,-324.4,0.00041363,30]
[398121824,1765385458081,-581.2,0.00041363,30]
[398121825,1765385458091,-500.0,0.00041363,30]
[398121826,1765385458100,-500.0,0.00041363,30]
[398121827,1765385458110,-151.0,0.00041364,120]
[398121828,1765385458120,-151.0,0.00041364,120]
[398121829,1765385458129,-151.0,0.00041364,10]
[398121830,1765385458140,-151.0,0.00041364,120]
[398121831,1765385458149,-151.0,0.00041364,120]
[398121832,1765385458159,-151.0,0.00041364,120]
[398121833,1765385458168,-151.0,0.00041364,120]
[398121834,1765385458177,-151.0,0.00041364,120]
[398121835,1765385458187,-151.0,0.00041364,120]
[398121836,1765385458196,-152.874406,0.00041364,120]
[398121837,1765385458206,-151.0,0.00041364,120]
[398121838,1765385458215,-151.0,0.00041364,120]
[398121839,1765385458224,-151.0,0.00041364,120]
[398121841,1765385458233,-151.0,0.00041364,120]
[398121842,1765385458242,-233.262918,0.00041364,120]
[398121843,1765385458251,-151.0,0.00041364,120]
[398121844,1765385458259,-151.0,0.00041364,90]
[398121845,1765385458268,-151.0,0.00041364,120]
[398121846,1765385458277,-151.0,0.00041364,120]
[398121847,1765385458287,-151.0,0.00041364,120]
[398121848,1765385458296,-151.0,0.00041364,120]
[398121849,1765385458305,-567.918994,0.00041368,30]
[398121850,1765385458314,-622.76,0.00041368,30]
[398121851,1765385458323,-157.114315,0.00041369,120]
[398121852,1765385458332,-151.0,0.00041369,120]
[398121853,1765385458341,-326.72944,0.00041369,120]
[398121854,1765385458350,-326.72944,0.00041369,120]
[398121855,1765385458359,-326.72944,0.00041369,120]
[398121856,1765385458368,-326.72944,0.00041369,120]
[398121857,1765385458377,-151.0,0.00041369,120]
[398121858,1765385458386,-151.0,0.00041369,120]
[398121859,1765385458396,-151.0,0.00041369,120]
[398121860,1765385458406,-206.543387,0.00041369,120]
[398121861,1765385458415,-151.0,0.00041369,120]
[398121862,1765385458424,-206.543387,0.00041369,120]
[398121863,1765385458434,-151.0,0.00041369,120]
[398121864,1765385458443,-206.543387,0.00041369,120]
[398121865,1765385458452,-206.543387,0.00041369,120]
[398121866,1765385458462,-270.377022,0.00041369,120]
[398121867,1765385458471,-270.377022,0.00041369,120]
[398121868,1765385458480,-270.377022,0.00041369,120]
[398121869,1765385458490,-325.63756,0.00041369,120]
[398121870,1765385458499,-270.377022,0.00041369,120]
[398121871,1765385458508,-325.63756,0.00041369,120]
[398121872,1765385458517,-325.63756,0.00041369,120]
[398121873,1765385458527,-325.63756,0.00041369,120]
[398121874,1765385458536,-304.036068,0.00041369,120]
[398121875,1765385458546,-304.036068,0.00041369,120]
[398121876,1765385458555,-304.036068,0.00041369,120]
[398121877,1765385458564,-379.802313,0.00041369,120]
[398121878,1765385458573,-304.036068,0.00041369,120]
[398121879,1765385458582,-379.802313,0.00041369,120]
[398121880,1765385458591,-379.802313,0.00041369,120]
[398121881,1765385458601,-343.025804,0.00041369,120]
[398121882,1765385458610,-379.802313,0.00041369,120]
[398121883,1765385458620,-343.025804,0.00041369,120]
[398121884,1765385458629,-343.025804,0.00041369,120]
[398121885,1765385458638,-343.025804,0.00041369,120]
[398121886,1765385458647,-151.0,0.00041369,15]
[398121887,1765385458657,-3999.053549,0.00041369,120]
[398121888,1765385458667,-151.0,0.00041369,15]
[398121889,1765385458679,-3999.053549,0.00041369,120]
[398121890,1765385458688,-3999.053549,0.00041369,120]
[398121891,1765385458698,-3999.053549,0.00041369,120]
[398121892,1765385458707,-697.270677,0.00041369,120]
[398121893,1765385458717,-697.270677,0.00041369,120]
[398121894,1765385458726,-697.270677,0.00041369,120]
[398121895,1765385458735,-1514.57487,0.00041369,120]
[398121896,1765385458746,-697.270677,0.00041369,120]
[398121897,1765385458756,-1514.57487,0.00041369,120]
[398121898,1765385458765,-1514.57487,0.00041369,120]
[398121899,1765385458774,-1514.57487,0.00041369,120]
[398121900,1765385458784,-1028.843754,0.00041369,120]
[398121901,1765385458794,-151.0,0.00041369,120]
[398121902,1765385458804,-151.0,0.00041369,120]
[398121903,1765385458813,-1028.843754,0.00041369,120]
[398121904,1765385458823,-1028.843754,0.00041369,120]
[398121905,1765385458832,-1028.843754,0.00041369,120]
[398121906,1765385458841,-151.0,0.00041369,120]
[398121907,1765385458851,-151.0,0.00041369,120]
[398121908,1765385458861,-656.837636,0.00041369,120]
[398121909,1765385458871,-151.0,0.00041369,120]
[398121910,1765385458880,-656.837636,0.00041369,120]
[398121911,1765385458890,-656.837636,0.00041369,120]
[398121912,1765385458899,-350.642454,0.00041369,120]
[398121913,1765385458910,-656.837636,0.00041369,120]
[398121914,1765385458919,-350.642454,0.00041369,120]
[398121915,1765385458929,-350.642454,0.00041369,120]
[398121916,1765385458939,-350.642454,0.00041369,120]
[398121917,1765385458949,-368.243567,0.00041369,120]
[398121918,1765385458958,-435.62562,0.00041369,120]
[398121919,1765385458968,-368.243567,0.00041369,120]
[398121920,1765385458978,-435.62562,0.00041369,120]
[398121921,1765385458988,-368.243567,0.00041369,120]
[398121922,1765385458998,-435.62562,0.00041369,120]
[398121923,1765385459008,-248.896682,0.00041369,120]
[398121924,1765385459018,-368.243567,0.00041369,120]
[398121925,1765385459027,-435.62562,0.00041369,120]
[398121926,1765385459036,-248.896682,0.00041369,120]
[398121927,1765385459046,-360.497485,0.00041369,120]
[398121928,1765385459056,-248.896682,0.00041369,120]
[398121929,1765385459065,-360.497485,0.00041369,120]
[398121930,1765385459075,-248.896682,0.00041369,120]
[398121931,1765385459084,-360.497485,0.00041369,120]
[398121932,1765385459095,-360.497485,0.00041369,120]
[398121933,1765385459104,-853.520649,0.00041369,120]
[398121934,1765385459114,-151.0,0.00041369,120]
[398121935,1765385459124,-853.520649,0.00041369,120]
[398121936,1765385459134,-853.520649,0.00041369,120]
[398121937,1765385459143,-853.520649,0.00041369,120]
[398121938,1765385459153,-151.0,0.00041369,120]
[398121939,1765385459166,-238.340185,0.00041369,120]
[398121940,1765385459176,-1105.311857,0.00041369,120]
[398121941,1765385459185,-1105.311857,0.00041369,120]
[398121942,1765385459195,-1105.311857,0.00041369,120]
[398121943,1765385459205,-1105.311857,0.00041369,120]
[398121944,1765385459214,-151.0,0.00041369,120]
[398121945,1765385459224,-151.0,0.00041369,120]
[398121946,1765385459234,-151.0,0.00041369,120]
[398121947,1765385459245,-1119.41108,0.00041369,120]
[398121948,1765385459255,-1119.41108,0.00041369,120]
[398121949,1765385459264,-151.0,0.00041369,120]
[398121950,1765385459274,-151.0,0.00041369,120]
[398121951,1765385459285,-151.0,0.00041369,120]
[398121952,1765385459295,-1119.41108,0.00041369,120]
[398121953,1765385459304,-151.0,0.00041369,120]
[398121954,1765385459313,-151.0,0.00041369,120]
[398121955,1765385459323,-1119.41108,0.00041369,120]
[398121956,1765385459332,-151.0,0.00041369,120]
[398121957,1765385459342,-151.0,0.00041369,120]
[398121958,1765385459351,-151.0,0.00041369,120]
[398121959,1765385459362,-151.0,0.00041369,120]
[398121960,1765385459372,-151.0,0.00041369,120]
[398121961,1765385459381,-255.43323,0.00041369,120]
[398121962,1765385459537,-169.90399,0.00041369,120]
[398121963,1765385459547,-151.0,0.00041369,120]
[398121964,1765385459557,-465.912624,0.00041369,120]
[398121965,1765385459566,-169.90399,0.00041369,120]
[398121966,1765385459575,-151.0,0.00041369,120]
[398121967,1765385459585,-1282.301139,0.00041369,120]
[398121968,1765385459595,-465.912624,0.00041369,120]
[398121969,1765385459604,-151.0,0.00041369,90]
[398121970,1765385459613,-169.90399,0.00041369,120]
[398121971,1765385459623,-194.72742,0.00041369,120]
[398121972,1765385459632,-465.912624,0.00041369,120]
[398121973,1765385459641,-151.0,0.00041369,90]
[398121974,1765385459651,-169.90399,0.00041369,120]
[398121975,1765385459662,-1282.301139,0.00041369,120]
[398121976,1765385459674,-465.912624,0.00041369,120]
[398121977,1765385459683,-1282.301139,0.00041369,120]
[398121978,1765385459693,-155.397602,0.00041369,120]
[398121979,1765385459703,-1282.301139,0.00041369,120]
[398121980,1765385459712,-151.0,0.00041369,120]
[398121981,1765385459721,-155.397602,0.00041369,120]
[398121982,1765385459731,-151.0,0.00041369,120]
[398121983,1765385459742,-155.397602,0.00041369,120]
[398121984,1765385459751,-155.397602,0.00041369,120]
[398121985,1765385459760,-471.246844,0.00041369,120]
[398121986,1765385459769,-471.246844,0.00041369,120]
[398121987,1765385459779,-471.246844,0.00041369,120]
[398121988,1765385459788,-471.246844,0.00041369,120]
[398121989,1765385459798,-151.0,0.00041369,120]
[398121990,1765385459809,-428.830349,0.00041369,120]
[398121991,1765385459818,-428.830349,0.00041369,120]
[398121992,1765385459830,-428.830349,0.00041369,120]
[398121993,1765385459841,-428.830349,0.00041369,120]
[398121994,1765385459850,-3636.765509,0.00041369,120]
[398121995,1765385459859,-3636.765509,0.00041369,120]
[398121996,1765385459868,-3636.765509,0.00041369,120]
[398121997,1765385459878,-3636.765509,0.00041369,120]
[398121998,1765385459887,-3636.765509,0.00041369,120]
[398121999,1765385459897,-3636.765509,0.00041369,120]
[398122000,1765385459906,-4258.069421,0.00041369,120]
[398122001,1765385459916,-4258.069421,0.00041369,120]
[398122002,1765385459925,-3636.765509,0.00041369,120]
[398122003,1765385459934,-3636.765507,0.00041369,120]
[398122004,1765385459943,-4258.069421,0.00041369,120]
[398122005,1765385459953,-4258.069421,0.00041369,120]
[398122006,1765385459962,-4258.069421,0.00041369,120]
[398122007,1765385459972,-4258.069421,0.00041369,120]
[398122008,1765385459982,-4258.069421,0.00041369,120]
[398122009,1765385459992,-4258.069421,0.00041369,120]
[398122010,1765385460002,-151.0,0.00041369,120]
[398122011,1765385460012,-151.0,0.00041369,120]
[398122012,1765385460021,-8749.692225,0.00041369,120]
[398122013,1765385460032,-8749.692225,0.00041369,120]
[398122014,1765385460042,-518.81217,0.00041369,120]
[398122015,1765385460052,-518.81217,0.00041369,120]
[398122016,1765385460063,-8749.692225,0.00041369,120]
[398122017,1765385460074,-8749.692225,0.00041369,120]
[398122018,1765385460084,-518.81217,0.00041369,120]
[398122019,1765385460093,-518.81217,0.00041369,120]
[398122020,1765385460103,-367406.84700134,0.00041369,30]
[398122021,1765385460120,-21474.93719866,0.00041369,30]
[398122022,1765385460129,-217.0,0.0004137,30]
[398122023,1765385460139,-1000.0,0.0004137,4]
[398122024,1765385460148,-437.51850135,0.0004137,30]
[398122025,1765385460158,-1056.51,0.0004137,30]
[398122026,1765385460167,-678.26,0.0004137,30]
[398122027,1765385460177,-500.0,0.0004137,30]
[398122028,1765385460186,-402.97,0.0004137,30]
[398122029,1765385460196,-500.0,0.0004137,30]
[398122030,1765385460205,-500.0,0.0004137,30]
[398122031,1765385460215,-281.53647738,0.0004137,120]
[398122032,1765385460224,-1326.42,0.0004137,30]
[398122033,1765385460235,-500.0,0.0004137,30]
[398122034,1765385460244,-152.140894,0.00041371,120]
[398122035,1765385460254,-151.0,0.00041371,120]
[398122036,1765385460263,-151.0,0.00041371,120]
[398122037,1765385460272,-151.0,0.00041371,120]
[398122038,1765385460282,-151.0,0.00041371,120]
[398122039,1765385460291,-151.0,0.00041371,120]
[398122040,1765385460300,-151.0,0.00041371,14]
[398122041,1765385460310,-152.619178,0.00041371,120]
[398122042,1765385460319,-206.634588,0.00041371,120]
[398122043,1765385460328,-2063.95,0.000414,14]
[398122044,1765385460338,-480.51571295,0.000414,120]
[398122045,1765385460347,-471.865073,0.00041412,2]
[398122046,1765385460357,-7301.6729489,0.00041412,2]
[398122047,1765385460366,-1056.51,0.00041443,30]
[398122048,1765385460375,-1056.51,0.00041443,30]
[398122049,1765385460385,-1056.51,0.00041443,30]
[398122050,1765385460394,-678.26,0.00041443,30]
[398122051,1765385460403,-678.26,0.00041443,30]
[398122052,1765385460414,-678.26,0.00041443,30]
[398122053,1765385460423,-500.0,0.00041443,30]
[398122054,1765385460432,-500.0,0.00041443,30]
[398122055,1765385460442,-500.0,0.00041443,30]
[398122056,1765385460452,-500.0,0.00041443,30]
[398122057,1765385460462,-151.52,0.00041443,30]
[398122058,1765385460471,-40328.47301268,0.00041444,7]
[398122059,1765385460483,-34245.80011621,0.00041444,7]
[398122060,1765385460496,-337556.97592224,0.00041444,7]
[398122061,1765385460510,-205233.62044887,0.00041444,7]
[398122062,1765385460522,-151.0,0.00041444,120]
[398122063,1765385460532,-277.509085,0.00041444,120]
[398122064,1765385460541,-151.0,0.00041444,120]
[398122065,1765385460551,-196.66989,0.00041444,120]
[398122066,1765385460560,-151.0,0.00041444,14]
[398122067,1765385460569,-151.0,0.00041444,120]
[398122068,1765385460579,-151.0,0.00041444,120]
[398122069,1765385460588,-238.313201,0.00041444,10]
[398122070,1765385460598,-151.0,0.00041444,120]
[398122071,1765385460608,-190.810771,0.00041444,120]
[398122072,1765385460617,-151.0,0.00041444,120]
[398122073,1765385460627,-151.0,0.00041444,120]
[398122074,1765385460638,-151.0,0.00041444,120]
[398122075,1765385460648,-151.0,0.00041444,120]
[398122076,1765385460658,-151.0,0.00041444,120]
[398122077,1765385460667,-189.992399,0.00041444,120]
[398122078,1765385460680,-151.0,0.00041444,120]
[398122079,1765385460690,-167.496938,0.00041444,120]
[398122080,1765385460700,-151.0,0.00041444,120]
[398122081,1765385460711,-153.724989,0.00041444,90]
[398122082,1765385460720,-198.549021,0.00041444,120]
[398122083,1765385460730,-151.0,0.00041444,120]
[398122084,1765385460740,-151.0,0.00041444,120]
[398122085,1765385460751,-151.0,0.00041444,120]
[398122086,1765385460760,-151.0,0.00041444,120]
[398122087,1765385460770,-326.72944,0.00041444,120]
[398122088,1765385460779,-326.72944,0.00041444,120]
[398122089,1765385460789,-326.72944,0.00041444,120]
[398122090,1765385460798,-326.72944,0.00041444,120]
[398122091,1765385460807,-151.0,0.00041444,120]
[398122092,1765385460816,-151.0,0.00041444,120]
[398122093,1765385460826,-206.543387,0.00041444,120]
[398122094,1765385460836,-151.0,0.00041444,120]
[398122095,1765385460846,-206.543387,0.00041444,120]
[398122096,1765385460855,-151.0,0.00041444,120]
[398122097,1765385460866,-206.543387,0.00041444,120]
[398122098,1765385460875,-206.543387,0.00041444,120]
[398122099,1765385460884,-270.377022,0.00041444,120]
[398122100,1765385460894,-270.377022,0.00041444,120]
[398122101,1765385460903,-270.377022,0.00041444,120]
[398122102,1765385460915,-325.63756,0.00041444,120]
[398122103,1765385460925,-270.377022,0.00041444,120]
[398122104,1765385460934,-325.63756,0.00041444,120]
[398122105,1765385460944,-325.63756,0.00041444,120]
[398122106,1765385460953,-325.63756,0.00041444,120]
[398122107,1765385460963,-304.036068,0.00041444,120]
[398122108,1765385460972,-304.036068,0.00041444,120]
[398122109,1765385460981,-304.036068,0.00041444,120]
[398122110,1765385460991,-379.802313,0.00041444,120]
[398122111,1765385461001,-304.036068,0.00041444,120]
[398122112,1765385461011,-379.802313,0.00041444,120]
[398122113,1765385461022,-379.802313,0.00041444,120]
[398122114,1765385461035,-343.025804,0.00041444,120]
[398122115,1765385461045,-379.802313,0.00041444,120]
[398122116,1765385461055,-343.025804,0.00041444,120]
[398122117,1765385461065,-343.025804,0.00041444,120]
[398122118,1765385461074,-343.025804,0.00041444,120]
[398122119,1765385461083,-151.0,0.00041444,15]
[398122120,1765385461092,-3999.053549,0.00041444,120]
[398122121,1765385461101,-151.0,0.00041444,15]
[398122122,1765385461111,-2680.86152929,0.00041444,120]
[398122123,1765385461123,-759.3450855,0.00041444,120]
[398122124,1765385461134,-558.84693421,0.00041444,120]
[398122125,1765385461143,-1054.48098929,0.00041444,120]
[398122126,1765385461320,-2215.25,0.00023205,2]
[398122127,1765385461329,-2215.25,0.00024133,2]
[398122128,1765385461339,-2215.25,0.00025061,2]
[398122129,1765385461348,-2215.25,0.0002599,2]
[398122130,1765385461357,-2215.25,0.00026918,2]
[398122131,1765385461366,-2215.25,0.00027846,2]
[398122132,1765385461376,-2215.25,0.00028774,2]
[398122133,1765385461385,-2215.25,0.00029702,2]
[398122134,1765385461395,-2215.25,0.00030631,2]
[398122135,1765385461404,-2215.25,0.00031559,2]
[398122136,1765385461415,-2215.25,0.00032487,2]
[398122137,1765385461424,-2215.25,0.00033415,2]
[398122138,1765385461433,-518.81217,0.00038256,31]
[398122139,1765385461442,-8749.692225,0.00038256,31]
[398122140,1765385461452,-518.81217,0.00039999,120]
[398122141,1765385461461,-8749.692225,0.00039999,120]
[398122142,1765385461471,-518.81217,0.00041361,120]
[398122143,1765385461481,-8749.692225,0.00041361,120]
[398122144,1765385461491,-518.81217,0.00041369,120]
[398122145,1765385461500,-518.81217,0.00041369,120]
[398122146,1765385461509,-8749.692225,0.00041369,120]
[398122147,1765385461520,-8749.692225,0.00041369,120]
[398122148,1765385461529,-518.81217,0.00041369,120]
[398122149,1765385461539,-518.81218,0.00041369,120]
[398122150,1765385461548,-8749.692225,0.00041369,120]
[398122151,1765385461558,-2944.57255971,0.00041444,120]
[398122152,1765385461568,-3999.053549,0.00041444,120]
[398122153,1765385461578,-697.270677,0.00041444,120]
[398122154,1765385461588,-697.270677,0.00041444,120]
[398122155,1765385461598,-697.270677,0.00041444,120]
[398122156,1765385461608,-1514.57487,0.00041444,120]
[398122157,1765385461617,-697.270677,0.00041444,120]
[398122158,1765385461627,-1514.57487,0.00041444,120]
[398122159,1765385461636,-1514.57487,0.00041444,120]
[398122160,1765385461648,-1514.57487,0.00041444,120]
[398122161,1765385461659,-1028.843754,0.00041444,120]
[398122162,1765385461672,-151.0,0.00041444,120]
[398122163,1765385461682,-1028.843754,0.00041444,120]
[398122164,1765385461692,-1028.843754,0.00041444,120]
[398122165,1765385461701,-1028.843754,0.00041444,120]
[398122166,1765385461713,-151.0,0.00041444,120]
[398122167,1765385461724,-151.0,0.00041444,120]
[398122168,1765385461734,-656.837636,0.00041444,120]
[398122169,1765385461745,-194.535923,0.00041444,120]
[398122170,1765385461755,-656.837636,0.00041444,120]
[398122171,1765385461764,-656.837636,0.00041444,120]
[398122172,1765385461775,-350.642454,0.00041444,120]
[398122173,1765385461784,-656.837636,0.00041444,120]
[398122174,1765385461794,-350.642454,0.00041444,120]
[398122175,1765385461803,-350.642454,0.00041444,120]
[398122176,1765385461812,-350.642454,0.00041444,120]
[398122177,1765385461821,-368.243567,0.00041444,120]
[398122178,1765385461831,-435.62562,0.00041444,120]
[398122179,1765385461841,-368.243567,0.00041444,120]
[398122180,1765385461851,-435.62562,0.00041444,120]
[398122181,1765385461860,-368.243567,0.00041444,120]
[398122182,1765385461870,-248.896682,0.00041444,120]
[398122183,1765385461880,-435.62562,0.00041444,120]
[398122184,1765385461889,-368.243567,0.00041444,120]
[398122185,1765385461899,-248.896682,0.00041444,120]
[398122186,1765385461910,-435.62562,0.00041444,120]
[398122187,1765385461920,-360.497485,0.00041444,120]
[398122188,1765385461958,-248.896682,0.00041444,120]
[398122189,1765385461967,-360.497485,0.00041444,120]
[398122190,1765385461977,-248.896682,0.00041444,120]
[398122191,1765385461986,-360.497485,0.00041444,120]
[398122192,1765385461996,-360.497485,0.00041444,120]
[398122193,1765385462006,-853.520649,0.00041444,120]
[398122194,1765385462015,-151.0,0.00041444,120]
[398122195,1765385462028,-853.520649,0.00041444,120]
[398122196,1765385462038,-853.520649,0.00041444,120]
[398122197,1765385462048,-853.520649,0.00041444,120]
[398122198,1765385462057,-212.365113,0.00041444,120]
[398122199,1765385462066,-1105.311857,0.00041444,120]
[398122200,1765385462078,-1105.311857,0.00041444,120]
[398122201,1765385462088,-1105.311857,0.00041444,120]
[398122202,1765385462097,-1105.311857,0.00041444,120]
[398122203,1765385462106,-151.0,0.00041444,120]
[398122204,1765385462115,-151.0,0.00041444,120]
[398122205,1765385462124,-151.0,0.00041444,120]
[398122206,1765385462135,-1119.41108,0.00041444,120]
[398122207,1765385462144,-1119.41108,0.00041444,120]
[398122208,1765385462155,-151.0,0.00041444,120]
[398122209,1765385462167,-241.509702,0.00041444,120]
[398122210,1765385462177,-151.0,0.00041444,120]
[398122211,1765385462187,-1119.41108,0.00041444,120]
[398122212,1765385462196,-151.0,0.00041444,120]
[398122213,1765385462206,-151.0,0.00041444,120]
[398122214,1765385462215,-1119.41108,0.00041444,120]
[398122215,1765385462225,-151.0,0.00041444,120]
[398122216,1765385462235,-151.0,0.00041444,120]
[398122217,1765385462245,-223.743808,0.00041444,120]
[398122218,1765385462254,-151.0,0.00041444,120]
[398122219,1765385462263,-170.843939,0.00041444,120]
[398122220,1765385462272,-169.90399,0.00041444,120]
[398122221,1765385462285,-151.0,0.00041444,120]
[398122222,1765385462294,-465.912624,0.00041444,120]
[398122223,1765385462303,-169.90399,0.00041444,120]
[398122224,1765385462313,-151.0,0.00041444,120]
[398122225,1765385462323,-1282.301139,0.00041444,120]
[398122226,1765385462333,-465.912624,0.00041444,120]
[398122227,1765385462342,-151.0,0.00041444,90]
[398122228,1765385462352,-169.90399,0.00041444,120]
[398122229,1765385462362,-465.912624,0.00041444,120]
[398122230,1765385462371,-151.0,0.00041444,90]
[398122231,1765385462380,-169.90399,0.00041444,120]
[398122232,1765385462390,-1282.301139,0.00041444,120]
[398122233,1765385462399,-465.912624,0.00041444,120]
[398122234,1765385462409,-1282.301139,0.00041444,120]
[398122235,1765385462419,-155.397602,0.00041444,120]
[398122236,1765385462428,-1282.301139,0.00041444,120]
[398122237,1765385462437,-151.0,0.00041444,120]
[398122238,1765385462446,-155.397602,0.00041444,120]
[398122239,1765385462455,-151.0,0.00041444,120]
[398122240,1765385462464,-155.397602,0.00041444,120]
[398122241,1765385462473,-155.397602,0.00041444,120]
[398122242,1765385462482,-471.246844,0.00041444,120]
[398122243,1765385462495,-471.246844,0.00041444,120]
[398122244,1765385462505,-471.246844,0.00041444,120]
[398122245,1765385462513,-471.246844,0.00041444,120]
[398122246,1765385462523,-151.0,0.00041444,120]
[398122247,1765385462532,-428.830349,0.00041444,120]
[398122248,1765385462540,-428.830349,0.00041444,120]
[398122249,1765385462550,-428.830349,0.00041444,120]
[398122250,1765385462559,-428.830349,0.00041444,120]
[398122251,1765385462568,-500.0,0.00041455,30]
[398122252,1765385462577,-500.0,0.00041455,30]
[398122253,1765385462586,-500.0,0.00041455,30]
[398122254,1765385462595,-500.0,0.00041455,30]
[398122255,1765385462604,-500.0,0.00041455,30]
[398122256,1765385462613,-500.0,0.00041455,30]
[398122257,1765385462622,-500.0,0.00041455,30]
[398122258,1765385462631,-500.0,0.00041455,30]
[398122259,1765385462640,-500.0,0.00041455,30]
[398122260,1765385462649,-500.0,0.00041455,30]
[398122261,1765385462658,-500.0,0.00041455,30]
[398122262,1765385462670,-500.0,0.00041455,30]
[398122263,1765385462683,-500.0,0.00041455,30]